bitfinex-derivatives/quotes_BTCF0:USTF0_20250504
["timestamp","ask_amount","ask_price","bid_price","bid_amount"]
[1746372259168,0.2092427,95578.0,95577.0,0.2944448]
[1746372259470,0.2592427,95578.0,95577.0,0.2944448]
[1746372259670,0.4401427,95578.0,95577.0,0.2944448]
[1746372260178,0.4401427,95578.0,95577.0,0.4124448]
[1746372260373,0.4431427,95578.0,95577.0,0.4124448]
[1746372261379,0.4451427,95578.0,95577.0,0.4124448]
[1746372262677,0.7351427,95578.0,95577.0,0.4124448]
[1746372262976,0.7351427,95578.0,95577.0,0.118]
[1746372263170,1.0751427,95578.0,95577.0,0.118]
[1746372264267,0.209247,95576.0,95575.0,0.3608]
[1746372264480,1.009247,95576.0,95575.0,0.3608]
[1746372264683,0.2092514,95574.0,95573.0,0.2992536]
[1746372264976,0.7392514,95574.0,95573.0,0.2992536]
[1746372265179,0.7392514,95574.0,95573.0,0.4172536]
[1746372265381,0.9131514,95574.0,95573.0,0.4172536]
[1746372265680,0.9131514,95574.0,95573.0,0.208]
[1746372265870,0.9141514,95574.0,95573.0,0.208]
[1746372266269,0.0523193,95563.0,95560.0,0.26316762]
[1746372266573,0.0844,95562.0,95561.0,0.3015799]
[1746372266775,0.5436777,95562.0,95561.0,1.8015799]
[1746372267179,0.5436777,95562.0,95561.0,1.9195799]
[1746372267478,0.6282777,95562.0,95561.0,0.4195799]
[1746372267674,0.6282777,95562.0,95561.0,0.5043799]
[1746372268079,0.6282777,95562.0,95561.0,0.5053799]
[1746372268376,0.6282777,95562.0,95561.0,0.5063799]
[1746372268777,0.5436777,95562.0,95561.0,0.5063799]
[1746372273978,0.5336777,95562.0,95561.0,0.5063799]
[1746372274782,0.4492777,95562.0,95561.0,0.5063799]
[1746372274983,0.3608,95586.0,95561.0,0.8240639]
[1746372275173,0.0523108,95578.0,95577.0,0.2092383]
[1746372275477,0.2023108,95578.0,95577.0,0.4725383]
[1746372276184,0.2023108,95578.0,95577.0,0.5905383]
[1746372276685,0.4115557,95578.0,95577.0,0.5905383]
[1746372276985,0.4145557,95578.0,95577.0,0.5905383]
[1746372277786,0.4165557,95578.0,95577.0,0.5905383]
[1746372278685,0.4265557,95578.0,95577.0,0.7734383]
[1746372280088,0.6100557,95578.0,95577.0,0.7734383]
[1746372280384,0.4600557,95578.0,95577.0,0.7734383]
[1746372280690,0.8700557,95578.0,95577.0,0.7734383]
[1746372281690,0.8700557,95578.0,95577.0,0.4126383]
[1746372282789,0.8900557,95578.0,95577.0,0.2034]
[1746372282990,0.8900557,95578.0,95577.0,0.4126449]
[1746372284091,0.8900557,95578.0,95577.0,0.2034]
[1746372284391,1.1700557,95578.0,95577.0,0.118]
[1746372285087,0.209247,95576.0,95575.0,0.3025486]
[1746372285283,0.779247,95576.0,95575.0,0.3025486]
[1746372286280,0.782247,95576.0,95575.0,0.3025486]
[1746372288191,0.782247,95576.0,95575.0,0.4205486]
[1746372289192,0.782247,95576.0,95575.0,0.3025486]
[1746372290194,0.782247,95576.0,95575.0,0.4205486]
[1746372294597,0.782247,95576.0,95575.0,0.2113]
[1746372297202,0.782247,95576.0,95575.0,0.06907349]
[1746372297896,0.834547,95576.0,95575.0,0.06907349]
[1746372298103,0.209258,95571.0,95570.0,0.2092596]
[1746372298406,0.579258,95571.0,95570.0,0.2092596]
[1746372298696,0.579258,95571.0,95569.0,0.3608]
[1746372298697,0.2092602,95570.0,95569.0,0.3608]
[1746372298900,0.7433602,95570.0,95569.0,0.3608]
[1746372299094,0.7433602,95570.0,95569.0,0.6880624]
[1746372300299,0.5333602,95570.0,95569.0,0.6880624]
[1746372300884,0.5333602,95570.0,95569.0,0.7789624]
[1746372300885,0.5343602,95570.0,95569.0,0.7789624]
[1746372303597,0.5343602,95570.0,95569.0,0.4181624]
[1746372306204,0.5343602,95570.0,95569.0,0.3272624]
[1746372306502,0.6211602,95570.0,95569.0,0.3272624]
[1746372307801,0.6211602,95570.0,95569.0,0.5058624]
[1746372309104,0.5343602,95570.0,95569.0,0.5058624]
[1746372310810,0.5343602,95570.0,95569.0,0.2966]
[1746372311503,0.5343602,95570.0,95569.0,0.5058624]
[1746372313699,0.5343602,95570.0,95569.0,0.2966]
[1746372316208,0.5343602,95570.0,95569.0,0.1786]
[1746372317108,0.5343602,95570.0,95569.0,0.2966]
[1746372322707,0.5343602,95570.0,95569.0,0.2061]
[1746372323612,0.5343602,95570.0,95569.0,0.0411334]
[1746372325212,0.2092624,95569.0,95568.0,0.0869]
[1746372325514,0.2092624,95569.0,95564.0,0.4131181]
[1746372325515,0.2615882,95567.0,95566.0,0.2092689]
[1746372325818,0.3015882,95567.0,95566.0,0.2092689]
[1746372326210,0.4791882,95567.0,95566.0,0.3272689]
[1746372328316,0.4791882,95567.0,95566.0,0.118]
[1746372328724,0.4791882,95567.0,95566.0,0.3272689]
[1746372329120,0.2092733,95564.0,95563.0,0.3877737]
[1746372329314,0.2292733,95564.0,95563.0,0.3877737]
[1746372330118,0.4034733,95564.0,95563.0,0.5057737]
[1746372330326,0.41426642,95564.0,95563.0,0.5067737]
[1746372331219,0.42426642,95564.0,95563.0,0.119]
[1746372332123,0.42426642,95564.0,95563.0,0.001]
[1746372332928,0.42426642,95564.0,95563.0,0.2102755]
[1746372343534,0.4134733,95564.0,95563.0,0.2102755]
[1746372346237,0.4134733,95564.0,95563.0,0.3282755]
[1746372346638,0.4134733,95564.0,95563.0,0.4122755]
[1746372347139,0.4134733,95564.0,95563.0,0.2942755]
[1746372347344,0.4242422,95564.0,95563.0,0.2942755]
[1746372348839,0.4134733,95564.0,95563.0,0.2942755]
[1746372349839,0.3251733,95564.0,95563.0,0.2942755]
[1746372350132,0.3151733,95564.0,95563.0,0.3819755]
[1746372351141,0.3151733,95564.0,95563.0,0.4122755]
[1746372352041,0.32611371,95564.0,95563.0,0.4122755]
[1746372352944,0.3151733,95564.0,95563.0,0.4122755]
[1746372359441,0.3992733,95564.0,95563.0,0.4122755]
[1746372361243,0.3992733,95564.0,95563.0,0.3282755]
[1746372362246,0.3992733,95564.0,95563.0,0.2102755]
[1746372364350,0.4292733,95564.0,95563.0,0.2102755]
[1746372366143,0.4292733,95564.0,95563.0,0.3282755]
[1746372369359,0.4292733,95564.0,95563.0,0.119]
[1746372370155,0.4292733,95564.0,95563.0,0.001]
[1746372374566,0.5992733,95564.0,95563.0,0.001]
[1746372385870,0.6992733,95564.0,95563.0,0.001]
[1746372386073,0.5992733,95564.0,95563.0,0.001]
[1746372388579,0.6515733,95564.0,95563.0,0.001]
[1746372390579,0.6530733,95564.0,95563.0,0.001]
[1746372390873,0.6515733,95564.0,95563.0,0.001]
[1746372391178,0.6530733,95564.0,95563.0,0.001]
[1746372391379,0.6515733,95564.0,95563.0,0.001]
[1746372394681,0.5992733,95564.0,95563.0,0.001]
[1746372397081,0.5992733,95564.0,95563.0,0.119]
[1746372398085,0.5992733,95564.0,95563.0,0.001]
[1746372402089,0.9492733,95564.0,95563.0,0.001]
[1746372402294,0.5992733,95564.0,95563.0,0.001]
[1746372404890,0.6515733,95564.0,95563.0,0.001]
[1746372407500,0.8715733,95564.0,95563.0,0.001]
[1746372407896,0.6515733,95564.0,95563.0,0.001]
[1746372408596,0.6415733,95564.0,95563.0,0.001]
[1746372409186,0.8715733,95564.0,95563.0,0.001]
[1746372410489,0.5992733,95564.0,95563.0,0.001]
[1746372414201,0.5992733,95564.0,95563.0,0.119]
[1746372415201,0.5992733,95564.0,95563.0,0.001]
[1746372416104,0.5992733,95564.0,95563.0,0.119]
[1746372420808,0.6007733,95564.0,95563.0,0.119]
[1746372421207,0.6992733,95564.0,95563.0,0.001]
[1746372421407,0.9592733,95564.0,95563.0,0.001]
[1746372421598,0.6007733,95564.0,95563.0,0.001]
[1746372421799,0.9392733,95564.0,95563.0,0.001]
[1746372422010,1.0992733,95564.0,95563.0,0.001]
[1746372422601,1.0530733,95564.0,95563.0,0.001]
[1746372423502,1.0540733,95564.0,95563.0,0.001]
[1746372423702,0.2092865,95558.0,95557.0,0.16010738]
[1746372424010,0.9415865,95558.0,95557.0,0.16010738]
[1746372424216,0.2092974,95553.0,95552.0,0.35161867]
[1746372424402,0.2592974,95553.0,95552.0,0.44701867]
[1746372425005,0.4463974,95553.0,95552.0,0.44701867]
[1746372425202,0.4463974,95553.0,95552.0,0.56501867]
[1746372425916,0.4453974,95553.0,95552.0,0.56501867]
[1746372426316,0.4453974,95553.0,95552.0,0.56701867]
[1746372426911,0.4453974,95553.0,95552.0,0.56801867]
[1746372427417,0.4553974,95553.0,95552.0,0.56801867]
[1746372428117,0.4553974,95553.0,95552.0,0.2164]
[1746372433120,0.4453974,95553.0,95552.0,0.4256996]
[1746372433610,0.4453974,95553.0,95552.0,0.2164]
[1746372434918,0.4453974,95553.0,95552.0,0.3119]
[1746372435421,0.4453974,95553.0,95552.0,0.5211996]
[1746372444722,0.4453974,95553.0,95552.0,0.36683537]
[1746372448019,0.4453974,95553.0,95552.0,0.27133537]
[1746372523096,0.0957,95553.0,95552.0,0.27133537]
[1746372523695,0.0957,95553.0,95552.0,0.40133537]
[1746372523896,0.0957,95553.0,95552.0,0.41373537]
[1746372524797,0.3049974,95553.0,95552.0,0.41373537]
[1746372526398,0.3049974,95553.0,95552.0,0.57373537]
[1746372526898,0.3049974,95553.0,95552.0,0.41373537]
[1746372527401,0.3049974,95553.0,95552.0,0.56373537]
[1746372529297,0.3049974,95553.0,95552.0,0.51623537]
[1746372529499,0.3049974,95553.0,95552.0,0.42133537]
[1746372536008,0.28925635,95568.0,95567.0,0.2092667]
[1746372536207,0.09998975,95568.0,95567.0,0.3272667]
[1746372536708,0.07998975,95568.0,95567.0,0.4472667]
[1746372537204,0.07998975,95568.0,95567.0,0.6771067]
[1746372537205,0.08198975,95568.0,95567.0,0.6771067]
[1746372537598,0.08298975,95568.0,95567.0,0.6771067]
[1746372538196,0.08298975,95568.0,95567.0,0.6971067]
[1746372538696,0.16030681,95594.0,95584.0,0.2092295]
[1746372539006,0.16030681,95594.0,95584.0,0.6900295]
[1746372539007,0.0887,95593.0,95584.0,0.6900295]
[1746372539205,0.22522759,95585.0,95584.0,0.6880295]
[1746372539706,0.31392759,95585.0,95584.0,0.6880295]
[1746372539908,0.31992759,95585.0,95584.0,0.6880295]
[1746372540101,0.32492759,95585.0,95584.0,0.6880295]
[1746372541107,0.1919,95585.0,95584.0,0.6880295]
[1746372542910,0.4311273,95585.0,95584.0,0.6880295]
[1746372543111,0.5222273,95585.0,95584.0,0.6880295]
[1746372543713,0.313,95585.0,95584.0,0.6880295]
[1746372544209,0.5222273,95585.0,95584.0,0.6880295]
[1746372545310,0.313,95585.0,95584.0,0.6880295]
[1746372546215,0.313,95585.0,95584.0,0.3272295]
[1746372546612,0.5222273,95585.0,95584.0,0.3272295]
[1746372547814,0.313,95585.0,95584.0,0.3272295]
[1746372550208,0.308,95585.0,95584.0,0.3272295]
[1746372551412,0.278,95585.0,95584.0,0.3272295]
[1746372551612,0.278,95585.0,95584.0,0.4221295]
[1746372552216,0.1869,95585.0,95584.0,0.4221295]
[1746372552914,0.06336,95608.0,95593.0,0.0523019]
[1746372553213,0.06336,95608.0,95598.0,0.2091989]
[1746372553214,0.0901,95599.0,95598.0,0.2091989]
[1746372553415,0.1501,95599.0,95598.0,0.5699989]
[1746372554120,0.1501,95599.0,95598.0,0.6879989]
[1746372554512,0.1531,95599.0,95598.0,0.6879989]
[1746372555414,0.1561,95599.0,95598.0,0.6879989]
[1746372555614,0.1561,95599.0,95598.0,0.3271989]
[1746372555811,0.4565967,95599.0,95598.0,0.3271989]
[1746372556219,0.4545967,95599.0,95598.0,0.3271989]
[1746372556515,0.4545967,95599.0,95598.0,0.3281989]
[1746372556516,0.4515967,95599.0,95598.0,0.3281989]
[1746372556911,0.4505967,95599.0,95598.0,0.3281989]
[1746372557115,0.4505967,95599.0,95598.0,0.3271989]
[1746372557425,0.4505967,95599.0,95598.0,0.3281989]
[1746372558617,0.4515967,95599.0,95598.0,0.3281989]
[1746372559318,0.4505967,95599.0,95598.0,0.3281989]
[1746372559618,0.4515967,95599.0,95598.0,0.3271989]
[1746372560021,0.4505967,95599.0,95598.0,0.3271989]
[1746372560225,0.4515967,95599.0,95598.0,0.3271989]
[1746372561519,0.4505967,95599.0,95598.0,0.3271989]
[1746372561719,0.4515967,95599.0,95598.0,0.3271989]
[1746372563219,0.4505967,95599.0,95598.0,0.3271989]
[1746372563418,0.4515967,95599.0,95598.0,0.3271989]
[1746372563614,0.4525967,95599.0,95598.0,0.3271989]
[1746372564824,0.4535967,95599.0,95598.0,0.3271989]
[1746372565923,0.4525967,95599.0,95598.0,0.3271989]
[1746372566129,0.4535967,95599.0,95598.0,0.3271989]
[1746372566519,0.4625967,95599.0,95598.0,0.3271989]
[1746372566726,0.4635967,95599.0,95598.0,0.3271989]
[1746372568224,0.7935967,95599.0,95598.0,0.118]
[1746372568420,0.8035967,95599.0,95598.0,0.118]
[1746372568621,0.7035967,95599.0,95598.0,0.118]
[1746372568823,0.8035967,95599.0,95598.0,0.118]
[1746372569128,0.2092033,95596.0,95595.0,0.2615045]
[1746372569325,0.5092033,95596.0,95595.0,0.2615045]
[1746372570130,0.5102033,95596.0,95595.0,0.2615045]
[1746372570826,0.5122033,95596.0,95595.0,0.2615045]
[1746372576426,0.2615115,95595.0,95594.0,0.2092061]
[1746372576626,0.6219115,95595.0,95594.0,0.2092061]
[1746372577323,0.6742115,95595.0,95594.0,0.2092061]
[1746372577719,0.6239115,95595.0,95594.0,0.2092061]
[1746372578825,0.6249115,95595.0,95594.0,0.2092061]
[1746372587937,0.6249115,95595.0,95593.0,0.0904]
[1746372588138,0.6249115,95595.0,95594.0,0.2092061]
[1746372589536,0.6239115,95595.0,95594.0,0.2092061]
[1746372590228,0.6249115,95595.0,95594.0,0.2092061]
[1746372590539,0.6249115,95595.0,95594.0,0.5700061]
[1746372590831,0.003,95595.0,95594.0,0.6642061]
[1746372591336,0.003,95595.0,95594.0,0.7822061]
[1746372594841,0.0015,95605.0,95598.0,0.0522993]
[1746372595037,0.0901,95614.0,95613.0,0.2091661]
[1746372595342,0.0957,95625.0,95613.0,0.2091661]
[1746372595343,0.0522851,95625.0,95615.0,0.2091617]
[1746372595543,0.081,95616.0,95615.0,0.2091617]
[1746372595839,0.081,95616.0,95615.0,0.3897617]
[1746372596140,0.081,95616.0,95615.0,0.5077617]
[1746372596538,0.086,95616.0,95615.0,0.5077617]
[1746372596832,0.092,95616.0,95615.0,0.5077617]
[1746372597739,0.092,95616.0,95615.0,0.6177617]
[1746372597932,0.012,95616.0,95615.0,0.6177617]
[1746372598129,0.012,95616.0,95615.0,0.5077617]
[1746372601845,0.006,95616.0,95615.0,0.5077617]
[1746372602138,0.004,95616.0,95615.0,0.5077617]
[1746372602540,0.003,95616.0,95615.0,0.5077617]
[1746372602743,0.002,95616.0,95615.0,0.5077617]
[1746372602943,0.004,95616.0,95615.0,0.5077617]
[1746372615652,0.004,95616.0,95615.0,0.4180617]
[1746372619652,0.004,95616.0,95615.0,0.7788617]
[1746372623449,0.002,95616.0,95615.0,0.7788617]
[1746372623648,0.004,95616.0,95615.0,0.7788617]
[1746372626658,0.0976,95616.0,95615.0,0.7788617]
[1746372630062,0.0976,95616.0,95615.0,0.93828678]
[1746372633160,0.0976,95616.0,95615.0,0.7788617]
[1746372637155,0.0976,95616.0,95615.0,0.93828678]
[1746372640669,0.0976,95616.0,95615.0,0.7788617]
[1746372656682,0.0976,95616.0,95615.0,0.93881223]
[1746372657574,0.1874,95616.0,95615.0,0.93881223]
[1746372659083,0.1874,95616.0,95615.0,0.57801223]
[1746372659288,0.1874,95616.0,95615.0,0.93881223]
[1746372660288,0.1874,95616.0,95615.0,0.7788617]
[1746372666687,0.3965595,95616.0,95615.0,0.7788617]
[1746372668286,0.3965595,95616.0,95615.0,0.93885502]
[1746372668891,0.1874,95616.0,95615.0,0.93885502]
[1746372675590,0.1874,95616.0,95615.0,0.7788617]
[1746372695107,0.1874,95616.0,95615.0,0.93885502]
[1746372699307,0.1874,95616.0,95615.0,0.7788617]
[1746372715030,0.1874,95616.0,95615.0,0.93883896]
[1746372721132,0.1874,95616.0,95615.0,0.82083896]
[1746372725134,0.1874,95616.0,95615.0,0.93883896]
[1746372727340,0.1874,95616.0,95615.0,0.7788617]
[1746372729938,0.1874,95616.0,95615.0,0.4180617]
[1746372730125,0.1874,95616.0,95615.0,0.7788617]
[1746372734843,0.3965595,95616.0,95615.0,0.4788]
[1746372735038,0.5845595,95616.0,95615.0,0.5699617]
[1746372736244,0.4665595,95616.0,95615.0,0.5699617]
[1746372737142,0.5845595,95616.0,95615.0,0.5699617]
[1746372737840,1.01914351,95616.0,95615.0,0.3608]
[1746372738141,1.01914351,95616.0,95615.0,0.5699617]
[1746372740045,1.01914351,95616.0,95615.0,0.3608]
[1746372740432,1.01914351,95616.0,95615.0,0.2091617]
[1746372740838,0.209177,95608.0,95607.0,0.3608]
[1746372741147,0.619177,95608.0,95607.0,0.5699792]
[1746372742145,0.920677,95608.0,95607.0,0.5699792]
[1746372742345,0.920677,95608.0,95607.0,0.5709792]
[1746372742643,0.93107282,95608.0,95607.0,0.5709792]
[1746372742838,1.14107282,95608.0,95607.0,0.3618]
[1746372743149,0.93107282,95608.0,95607.0,0.3618]
[1746372743447,0.93017282,95608.0,95607.0,0.3618]
[1746372745343,0.81217282,95608.0,95607.0,0.3618]
[1746372746745,0.81217282,95608.0,95607.0,0.001]
[1746372748743,1.52756882,95608.0,95607.0,0.001]
[1746372749042,2.02556882,95608.0,95607.0,0.001]
[1746372749649,2.02856882,95608.0,95607.0,0.001]
[1746372749850,0.2091989,95598.0,95597.0,0.2614989]
[1746372750150,0.3391989,95598.0,95597.0,0.2091987]
[1746372751044,0.5248989,95598.0,95597.0,0.2091987]
[1746372751949,0.5258989,95598.0,95597.0,0.2091987]
[1746372752137,0.5268989,95598.0,95597.0,0.2091987]
[1746372762347,0.5268989,95598.0,95596.0,0.0871]
[1746372762553,0.5268989,95598.0,95597.0,0.2091987]
[1746372763449,0.3700001,95598.0,95595.0,0.21077336]
[1746372763651,0.2092033,95596.0,95595.0,0.21077336]
[1746372763948,0.3992033,95596.0,95595.0,0.30547336]
[1746372765359,0.4002033,95596.0,95595.0,0.30547336]
[1746372766265,0.4002033,95596.0,95595.0,0.09626906]
[1746372767655,0.6102033,95596.0,95595.0,0.00156906]
[1746372768051,0.0523017,95595.0,95580.0,0.5207583]
[1746372768348,0.2092208,95588.0,95583.0,0.0867]
[1746372768549,0.7392208,95588.0,95583.0,0.0867]
[1746372768758,1.0200208,95588.0,95583.0,0.0867]
[1746372768954,1.2300208,95588.0,95583.0,0.0867]
[1746372769155,1.3480208,95588.0,95587.0,0.00256924]
[1746372769354,1.3480208,95588.0,95587.0,0.00356924]
[1746372770860,1.3480208,95588.0,95587.0,0.00256924]
[1746372771066,1.3480208,95588.0,95587.0,0.00356924]
[1746372774061,1.2340208,95588.0,95587.0,0.00256924]
[1746372774261,1.2370208,95588.0,95587.0,0.00156924]
[1746372776067,1.3550208,95588.0,95587.0,0.00156924]
[1746372777265,1.2370208,95588.0,95587.0,0.00156924]
[1746372786278,1.3550208,95588.0,95587.0,0.00156924]
[1746372787269,1.2370208,95588.0,95587.0,0.00156924]
[1746372790474,1.5978208,95588.0,95587.0,0.00156924]
[1746372796677,0.2092405,95579.0,95578.0,0.092]
[1746372796873,0.4092405,95579.0,95578.0,0.092]
[1746372797067,0.4092405,95579.0,95578.0,0.21]
[1746372797469,0.5867405,95579.0,95578.0,0.21]
[1746372797974,0.5877405,95579.0,95578.0,0.21]
[1746372798876,0.5897405,95579.0,95578.0,0.4192427]
[1746372799278,0.5897405,95579.0,95578.0,0.21]
[1746372800577,0.5897405,95579.0,95578.0,0.2992]
[1746372802682,0.60030252,95579.0,95578.0,0.5084427]
[1746372803485,0.5897405,95579.0,95578.0,0.5084427]
[1746372805384,0.60050613,95579.0,95578.0,0.5084427]
[1746372807984,0.60050613,95579.0,95578.0,0.4192427]
[1746372808382,0.60050613,95579.0,95578.0,0.21]
[1746372812197,0.60050613,95579.0,95578.0,0.4192427]
[1746372820600,0.60050613,95579.0,95578.0,0.21]
[1746372824399,0.55050613,95579.0,95578.0,0.4192427]
[1746372824700,0.57050613,95579.0,95578.0,0.4192427]
[1746372826102,0.57050613,95579.0,95578.0,0.3012427]
[1746372827100,0.57050613,95579.0,95578.0,0.092]
[1746372830004,0.57050613,95579.0,95578.0,0.3012427]
[1746372831104,0.57050613,95579.0,95578.0,0.4192427]
[1746372836210,0.57050613,95579.0,95578.0,0.21]
[1746372839210,0.57050613,95579.0,95578.0,0.092]
[1746372843009,0.68050613,95579.0,95578.0,0.092]
[1746372843207,0.68050613,95579.0,95578.0,0.21]
[1746372845118,0.68050613,95579.0,95578.0,0.092]
[1746372854918,0.90050613,95579.0,95578.0,0.092]
[1746372855119,0.90050613,95579.0,95544.0,0.0523289]
[1746372855120,0.2092733,95564.0,95560.0,0.05389008]
[1746372855323,0.2492733,95564.0,95561.0,0.1769]
[1746372855512,0.2492733,95564.0,95562.0,0.2092775]
[1746372855718,0.2492733,95564.0,95563.0,0.36931601]
[1746372856123,0.2492733,95564.0,95563.0,0.48731601]
[1746372856319,0.4248733,95564.0,95563.0,0.48831601]
[1746372856727,0.4248733,95564.0,95563.0,0.57411601]
[1746372857023,0.4248733,95564.0,95563.0,0.57511601]
[1746372857222,0.4248733,95564.0,95563.0,0.36584051]
[1746372857617,0.4248733,95564.0,95563.0,0.2058]
[1746372858017,0.4448733,95564.0,95563.0,0.12]
[1746372858223,0.9148733,95564.0,95563.0,0.002]
[1746372858826,0.6948733,95564.0,95563.0,0.002]
[1746372860320,0.9348733,95564.0,95563.0,0.002]
[1746372869330,1.2956733,95564.0,95563.0,0.002]
[1746372877142,1.2956733,95564.0,95563.0,0.12]
[1746372878242,1.2956733,95564.0,95563.0,0.002]
[1746372880138,1.2956733,95564.0,95563.0,0.12]
[1746372881242,1.2956733,95564.0,95563.0,0.002]
[1746372886248,1.2956733,95564.0,95563.0,0.12]
[1746372888156,1.2956733,95564.0,95563.0,0.002]
[1746372888348,1.6556733,95564.0,95563.0,0.002]
[1746372899873,1.7187933,95564.0,95563.0,0.002]
[1746372903068,1.7187933,95564.0,95563.0,0.12]
[1746372905174,1.7187933,95564.0,95563.0,0.002]
[1746372909180,1.7187933,95564.0,95563.0,0.12]
[1746372922475,1.7187533,95564.0,95563.0,0.12]
[1746372923181,1.8233973,95564.0,95563.0,0.12]
[1746372923388,1.8233973,95564.0,95552.0,0.00156982]
[1746372923389,0.2092908,95556.0,95552.0,0.00156982]
[1746372923586,1.6700908,95556.0,95552.0,0.00156982]
[1746372924274,1.7697908,95556.0,95555.0,0.11904651]
[1746372924472,1.7697908,95556.0,95555.0,0.12104651]
[1746372925387,1.7697908,95556.0,95555.0,0.12304651]
[1746372926686,1.8328708,95556.0,95555.0,0.12304651]
[1746372933489,0.2092974,95553.0,95552.0,0.00156982]
[1746372933683,0.2093171,95544.0,95543.0,0.16004051]
[1746372933877,1.3393171,95544.0,95543.0,0.16004051]
[1746372934081,0.2093193,95543.0,95542.0,0.16004051]
[1746372934283,1.08996053,95543.0,95542.0,0.16004051]
[1746372934486,1.08796053,95543.0,95542.0,0.16004051]
[1746372935189,1.08796053,95543.0,95542.0,0.27804051]
[1746372935992,1.08696053,95543.0,95542.0,0.27804051]
[1746372936300,1.08896053,95543.0,95542.0,0.27804051]
[1746372936481,0.71996053,95543.0,95542.0,0.27804051]
[1746372937090,0.72096053,95543.0,95542.0,0.27804051]
[1746372937394,0.2093303,95538.0,95537.0,0.0473]
[1746372937689,0.3593303,95538.0,95537.0,0.0473]
[1746372938192,0.3593303,95538.0,95537.0,0.1653]
[1746372938385,0.4588303,95538.0,95537.0,0.1653]
[1746372939693,0.2093325,95537.0,95536.0,0.03649833]
[1746372939891,0.3683325,95537.0,95536.0,0.03649833]
[1746372940083,0.4661325,95537.0,95536.0,0.15449833]
[1746372940992,0.4681325,95537.0,95536.0,0.15449833]
[1746372941889,0.4191325,95537.0,95536.0,0.15449833]
[1746372942794,0.3791325,95537.0,95536.0,0.15449833]
[1746372942993,0.3791325,95537.0,95536.0,0.20199833]
[1746372944298,0.3991325,95537.0,95536.0,0.20199833]
[1746372955004,0.3991325,95537.0,95536.0,0.15449833]
[1746372956705,0.3991325,95537.0,95536.0,0.118]
[1746372972911,0.6491325,95537.0,95536.0,0.118]
[1746372975116,0.2093456,95531.0,95530.0,0.30759219]
[1746372975324,0.2293456,95531.0,95530.0,0.30759219]
[1746372976017,0.2949456,95531.0,95530.0,0.30759219]
[1746372976322,0.2949456,95531.0,95530.0,0.42659219]
[1746372981935,0.6749456,95531.0,95530.0,0.42659219]
[1746372982547,0.2949456,95531.0,95530.0,0.42659219]
[1746372984234,0.3149456,95531.0,95530.0,0.42659219]
[1746372987253,0.3149456,95531.0,95530.0,0.119]
[1746372999943,0.2949456,95531.0,95530.0,0.119]
[1746373000450,0.0656,95531.0,95530.0,0.9038278]
[1746373000648,0.2749456,95531.0,95530.0,0.7938278]
[1746373003151,0.2749456,95531.0,95530.0,0.6891478]
[1746373010564,0.0656,95531.0,95530.0,0.6891478]
[1746373020166,0.2749456,95531.0,95530.0,0.6891478]
[1746373023468,0.2749456,95531.0,95530.0,2.1891478]
[1746373024658,0.0656,95531.0,95530.0,2.1891478]
[1746373026077,0.2749456,95531.0,95530.0,2.1891478]
[1746373039964,0.0656,95531.0,95530.0,2.1891478]
[1746373060988,0.2749456,95531.0,95530.0,2.1891478]
[1746373073594,0.0656,95531.0,95530.0,2.1891478]
[1746373074000,0.476125,95552.0,95546.0,0.2093127]
[1746373074296,0.30928167,95547.0,95546.0,0.2093127]
[1746373074696,0.2093259,95541.0,95540.0,0.209315]
[1746373074893,0.2393259,95541.0,95540.0,0.209315]
[1746373075100,0.2093259,95541.0,95540.0,0.327315]
[1746373075296,0.2524259,95541.0,95540.0,0.327315]
[1746373075998,0.2534259,95541.0,95540.0,0.327315]
[1746373077188,0.3182259,95541.0,95540.0,0.327315]
[1746373077391,0.3202259,95541.0,95540.0,0.327315]
[1746373081593,0.3402259,95541.0,95540.0,0.118]
[1746373082799,0.3402259,95541.0,95540.0,0.3273259]
[1746373083601,0.3402259,95541.0,95540.0,0.118]
[1746373084400,0.2093303,95538.0,95537.0,0.2093322]
[1746373084603,0.2493303,95538.0,95537.0,0.2093322]
[1746373085290,0.3123303,95538.0,95537.0,0.2093322]
[1746373085491,0.3133303,95538.0,95537.0,0.2093322]
[1746373087502,0.2093434,95532.0,95531.0,0.16012951]
[1746373087694,0.3293434,95532.0,95531.0,0.36947511]
[1746373088302,0.3922434,95532.0,95531.0,0.48747511]
[1746373088896,0.3922434,95532.0,95531.0,0.48847511]
[1746373091403,0.3922434,95532.0,95531.0,0.119]
[1746373091605,0.7622434,95532.0,95531.0,0.119]
[1746373091802,0.3922434,95532.0,95531.0,0.119]
[1746373092206,0.3922434,95532.0,95531.0,0.001]
[1746373092407,0.0523369,95530.0,95526.0,0.36948551]
[1746373092609,0.2093544,95527.0,95526.0,0.36948551]
[1746373092809,0.2793544,95527.0,95526.0,0.36948551]
[1746373093201,0.2793544,95527.0,95526.0,0.48748551]
[1746373093401,0.3435544,95527.0,95526.0,0.48748551]
[1746373093613,0.3435544,95527.0,95526.0,0.48848551]
[1746373093812,0.2735544,95527.0,95526.0,0.48848551]
[1746373094011,0.2935544,95527.0,95526.0,0.48848551]
[1746373095216,0.2935544,95527.0,95526.0,0.328356]
[1746373095711,0.2935544,95527.0,95526.0,0.330356]
[1746373097620,0.0331,95527.0,95526.0,0.450356]
[1746373097810,0.0331,95527.0,95526.0,0.512256]
[1746373098002,0.0305,95528.0,95527.0,0.2093544]
[1746373098203,0.0305,95528.0,95527.0,0.3504544]
[1746373099113,0.0305,95528.0,95527.0,0.4684544]
[1746373099321,0.0305,95528.0,95527.0,0.4704544]
[1746373099612,0.031,95531.0,95530.0,0.2093478]
[1746373099914,0.2403215,95542.0,95541.0,0.2093237]
[1746373100211,0.2705215,95542.0,95541.0,0.2093237]
[1746373101110,0.2705215,95542.0,95541.0,0.3273237]
[1746373102509,0.2735215,95542.0,95541.0,0.3273237]
[1746373112119,0.2093456,95531.0,95530.0,0.15998287]
[1746373112320,0.6201456,95531.0,95530.0,0.15998287]
[1746373112633,0.2093566,95526.0,95525.0,0.21040564]
[1746373112825,0.2293566,95526.0,95525.0,0.21040564]
[1746373113326,0.2293566,95526.0,95525.0,0.32840564]
[1746373113526,0.2928566,95526.0,95525.0,0.32840564]
[1746373113922,0.2928566,95526.0,95525.0,0.32940564]
[1746373114425,0.2918566,95526.0,95525.0,0.32940564]
[1746373114613,0.3318566,95526.0,95525.0,0.07014684]
[1746373114814,0.2093631,95523.0,95522.0,0.55609473]
[1746373115019,0.6581631,95523.0,95522.0,0.55609473]
[1746373115219,0.6581631,95523.0,95522.0,0.2093646]
[1746373115524,0.66843866,95523.0,95522.0,0.2093646]
[1746373116026,0.66843866,95523.0,95522.0,0.2143646]